Cogmind - Beta 13 X1 @@@ ROGUE MODE // 2023.07.11 @ 15:26:50 Player: Minty Result: Destroyed by G-47 Trooper with Particle Gun Performance ------------- Evolutions (0) 0 Regions Visited (2) 400 Robots Destroyed (20) 100 Value Destroyed (537) 537 Prototype IDs (2) 40 Alien Tech Used (0) 0 Bonus (0) 0 TOTAL SCORE: 1077 Bonus ------- None Cogmind --------- Core Integrity 0/250 Matter 236/300 Energy 59/100 System Corruption 0% Temperature Warm (199) Movement Walking (120) Location -10/Mines Parts ------- > --- POWER (1) -------- (None) > --- PROPULSION (2) --- Aluminum Leg Aluminum Leg > --- UTILITY (2) ------ (None) > --- WEAPON (2) ------- Particle Gun Light Assault Rifle > --- INVENTORY (5) ---- Light Ion Engine Assault Rifle Peak State ------------ > --- POWER ------------ Light Nuclear Core > --- PROPULSION ------- Light Treads Light Treads > --- UTILITY ---------- Heat Sink Backup Plating I > --- WEAPON ----------- Particle Gun Light Assault Rifle > --- INVENTORY -------- Light Ion Engine Light Ion Engine Aluminum Leg Wheel Light Assault Rifle [Rating: 10] Favorites ----------- Power Ion Engine Engine Ion Engine Power Core Light Nuclear Core Propulsion Aluminum Leg Treads Light Treads Leg Aluminum Leg Flight Unit Flight Unit Utility Seismic Detector Device Seismic Detector Storage Small Storage Unit Protection Backup Plating I Weapon Particle Gun Energy Gun Particle Gun Ballistic Gun Assault Rifle Build | -11 -10 -10 ------- Run | Jun Mat Min Slots Evolved . | . . . Power . | . . . Propulsion . | . . . Utility . | . . . Weapon . | . . . Parts Attached 22 | . 18 4 Power 3 | . 3 . Engine 2 | . 2 . Core 1 | . 1 . Reactor . | . . . Propulsion 10 | . 8 2 Treads 2 | . 2 . Leg 6 | . 4 2 Wheel . | . . . Hover . | . . . Flight 2 | . 2 . Utility 2 | . 2 . Device 2 | . 2 . Storage . | . . . Processor . | . . . Hackware . | . . . Protection . | . . . Artifact . | . . . Weapon 7 | . 5 2 Energy Gun 1 | . 1 . Energy Cannon . | . . . Ballistic Gun 6 | . 4 2 Ballistic Cannon . | . . . Launcher . | . . . Special Weapon . | . . . Impact Weapon . | . . . Slashing Weapon . | . . . Piercing Weapon . | . . . Special Melee Weapon . | . . . Unidentified Prototypes . | . . . Parts Lost 10 | . 5 5 Power 2 | . 1 1 Propulsion 4 | . 2 2 Utility 3 | . 2 1 Weapon 1 | . . 1 Highest Loss Streak 5 | . 3 5 To Critical Strikes . | . . . Average Slot Usage (%) 85 | . 86 81 Engine 7 | . 6 12 Core 5 | . 7 . Treads 4 | . 5 . Leg 20 | . 18 26 Flight 1 | . 2 . Device 10 | . 10 12 Storage 1 | . 1 . Protection 4 | . 6 . Energy Gun 13 | . 13 14 Ballistic Gun 14 | . 14 14 Naked Turns . | . . . Heaviest Build 14 | 14 14 11 Greatest Support 40 | 20 40 20 Greatest Overweight (x) 3 | . 3 . Average Overweight (x) . | . . . Largest Inventory Capacity 8 | 8 8 5 Average Capacity 5 | 8 5 5 Most Carried 8 | 6 8 5 Average Carried 4 | 6 4 4 Final Capacity 8 | 8 5 5 Final Carried 6 | 6 5 2 Class Distribution -------------------- 100% | Mutant Dominant Class ---------------- Mutant | -10/Materials Mutant | -10/Mines Resources | -11 -10 -10 ----------- Run | Jun Mat Min Matter Collected 475 | 200 275 . Remotely . | . . . Salvage Created 707 | . 568 139 Parts 45 | . 37 8 Haulers Intercepted 2 | . 2 . Recyclers Shooed . | . . . Parts Field Recycled . | . . . Retrieved Matter . | . . . Parts Self-Destructed . | . . . Prevented . | . . . Kills | -11 -10 -10 ------- Run | Jun Mat Min Combat Hostiles Destroyed 15 | . 12 3 Guns 15 | . 12 3 Classes Destroyed 6 | . 5 1 Builder 1 | . 1 . Hauler 2 | . 2 . Watcher 2 | . 2 . Swarmer 3 | . 3 . Grunt 10 | . 9 1 Sentry 2 | . . 2 Best Kill Streak 4 | . 4 3 Combat Bots Only 4 | . 4 3 Max Kills in Single Turn 2 | . 2 1 Gunslinging 1 | . 1 . Exploded . | . . . Melee . | . . . Uniques/NPCs Destroyed . | . . . Combat | -11 -10 -10 -------- Run | Jun Mat Min Damage Taken 1206 | . 842 364 Core 257 | . 180 77 Absorbed by Shields . | . . . Core Remaining (%) 100 | 100 . . Volleys Fired 71 | . 60 11 Largest 2 | . 2 2 Hottest 90 | . 90 85 Shots Fired 137 | . 116 21 Gun 137 | . 116 21 Cannon . | . . . Launcher . | . . . Special . | . . . Kinetic 79 | . 69 10 Thermal 52 | . 41 11 Explosive . | . . . Electromagnetic 6 | . 6 . Robot Hit Streak 8 | . 7 8 Robot Miss Streak 4 | . 4 1 Penetration Max . | . . . Secondary Targets 5 | . 3 2 Max Gunslinging Chain 1 | . 1 1 Shots Hit Robots 85 | . 67 18 Core Hits 35 | . 29 6 Critical Kills . | . . . Critical Parts Destroyed . | . . . Critical Strikes 4 | . 3 1 Burn 4 | . 3 1 Melee Attacks . | . . . Impact . | . . . Slashing . | . . . Piercing . | . . . Sneak Attacks . | . . . Combat Hostiles . | . . . Follow-up Attacks . | . . . Damage Inflicted 1317 | . 1057 260 Guns 1102 | . 842 260 Cannons . | . . . Explosions 215 | . 215 . Melee . | . . . Ramming . | . . . Kinetic 566 | . 449 117 Thermal 491 | . 348 143 Explosive 215 | . 215 . Electromagnetic 45 | . 45 . Impact . | . . . Slashing . | . . . Piercing . | . . . Highest Corruption . | . . . Average Corruption . | . . . Corruption Purged . | . . . Corruption Blocked . | . . . Overload Shots . | . . . Overflow Damage 95 | . 95 . Projectiles . | . . . Explosions 95 | . 95 . Melee . | . . . Knockbacks . | . . . Impact . | . . . Kinetic . | . . . Secondary . | . . . Self-Inflicted Damage . | . . . Shots . | . . . Rammed . | . . . Targets Rammed . | . . . Kicked . | . . . Crushed . | . . . Highest Temperature 254 | . 254 230 Average Temperature 74 | . 66 111 Received Heat Transfer 555 | . 402 153 Effects 2 | . 2 . Interference 2 | . 2 . Siege Activations . | . . . Robots Corrupted . | . . . Combat Hostiles . | . . . Parts Fried . | . . . Impact Corruptions . | . . . Robots Melted . | . . . Combat Hostiles . | . . . Parts Melted 1 | . 1 . Heat Transferred 1480 | . 1073 407 Parts Sabotaged . | . . . Parts Stolen . | . . . Parts Stripped . | . . . Power Chain Reactions . | . . . Missiles Intercepted . | . . . Alert | -11 -10 -10 ------- Run | Jun Mat Min Peak Influence 225 | . 225 139 Initial 74 | . . 74 Average 117 | . 127 83 Maximum Alert Level 1 | . 1 . Low Security (%) 94 | 100 93 100 Level 1 5 | . 6 . Level 2 . | . . . Level 3 . | . . . Level 4 . | . . . Level 5 . | . . . High Security . | . . . Max Security . | . . . Squads Dispatched 3 | . 3 . Investigation 1 | . 1 . Extermination . | . . . Reinforcement 2 | . 2 . Assault . | . . . Garrison . | . . . Intercept . | . . . Searches Triggered . | . . . Construction Impeded . | . . . Haulers Reinforced . | . . . Active Scanning Responses . | . . . Cargo Convoy Interrupts . | . . . Stealth | -11 -10 -10 --------- Run | Jun Mat Min Distress Signals 2 | . 2 . Communications Jammed . | . . . Distress Signals . | . . . Times Spotted 24 | . 20 4 Peak Tracking Total 6 | . 6 4 Tactical Retreats 1 | . 1 . Traps | -11 -10 -10 ------- Run | Jun Mat Min Traps Triggered 1 | . 1 . Indirectly . | . . . Trap Hack Attempts . | . . . Triggered . | . . . Disarmed . | . . . Reprogrammed . | . . . Reused . | . . . Traps Extracted . | . . . Installed . | . . . Triggered . | . . . Machines | -11 -10 -10 ---------- Run | Jun Mat Min Machines Disabled 1 | . 1 . Max in Single Turn 1 | . 1 . Machines Repaired . | . . . Machines Sabotaged . | . . . Overloaded Fab Kills . | . . . Hacking | -11 -10 -10 --------- Run | Jun Mat Min Machines Accessed 4 | . 4 . Terminals 3 | . 3 . Fabricators . | . . . Repair Stations 1 | . 1 . Recycling Units . | . . . Scanalyzers . | . . . Garrison Access . | . . . Total Hacks 14 | . 14 . Successful 7 | . 7 . Failed 7 | . 7 . Catastrophic 2 | . 2 . Database Lockouts . | . . . Manual 8 | . 8 . Terminals 10 | . 10 . Fabricators . | . . . Repair Stations 4 | . 4 . Recycling Units . | . . . Scanalyzers . | . . . Garrison Access . | . . . Terminal Hacks 4 | . 4 . Prototype ID Bank 1 | . 1 . Branch Access Points 1 | . 1 . Alert Level 1 | . 1 . Recall Investigation 1 | . 1 . Fabricator Hacks . | . . . Repair Station Hacks 1 | . 1 . Refit 1 | . 1 . Recycling Unit Hacks . | . . . Scanalyzer . | . . . Garrison Access Hacks . | . . . Unauthorized Hacks 2 | . 2 . Terminals 2 | . 2 . Botnet 2 | . 2 . Fabricators . | . . . Repair Stations . | . . . Recycling Units . | . . . Scanalyzers . | . . . Garrison Access . | . . . Data Cores Recovered . | . . . Used . | . . . Hacking Detections 3 | . 3 . Full Trace Events 1 | . 1 . Feedback Events . | . . . Feedback Blocked . | . . . Robot Schematics Acquired . | . . . Robots Built . | . . . Authchips . | . . . Time . | . . . Total Robot Build Rating . | . . . Part Schematics Acquired . | . . . Parts Built . | . . . Authchips . | . . . Time . | . . . Total Part Build Rating . | . . . Parts Repaired . | . . . Time . | . . . Parts Recycled . | . . . Recycled Matter . | . . . Retrieved Matter . | . . . Retrieved Components . | . . . Parts Scanalyzed . | . . . Part Schematics Acquired . | . . . Parts Damaged . | . . . Bothacking | -11 -10 -10 ------------ Run | Jun Mat Min Used RIF Installer . | . . . Robots Hacked . | . . . Non-combat . | . . . Combat . | . . . Robot Hacks Applied . | . . . Relay Couplers Released . | . . . Fabnet Peak Effective % . | . . . Robots Rewired . | . . . Allies Hacked . | . . . Hacks Repelled . | . . . Allies | -11 -10 -10 -------- Run | Jun Mat Min Total Allies . | . . . Largest Group . | . . . Highest-Rated Group . | . . . Highest-Rated Ally . | . . . Total Orders . | . . . Ally Attacks . | . . . Total Damage . | . . . Kills . | . . . Allies Corrupted . | . . . Allies Melted . | . . . Intel | -11 -10 -10 ------- Run | Jun Mat Min Robot Analysis Total . | . . . Derelict Logs Recovered . | . . . Drone Launches . | . . . Drone Recoveries . | . . . Exploration | -11 -10 -10 ------------- Run | Jun Mat Min Turns Passed 692 | 12 554 126 Spaces Moved 369 | 11 288 70 Core . | . . . Treads 62 | . 62 . Legs 270 | 11 189 70 Wheels . | . . . Hover . | . . . Flight 37 | . 37 . Fastest Speed 37 | 120 37 120 Average Speed 119 | 120 119 120 Slowest Speed 280 | 120 280 120 Overloaded Moves . | . . . Propulsion Burnouts . | . . . Robots Hopped . | . . . Cave-ins Triggered . | . . . Exploration Rate (%) 27 | 1 60 21 Regions Visited 2 Branch Regions 1 Pre-discovered Areas . | . . . Known Exits Taken 1 | . 1 . Unknown Exits Taken 1 | 1 . . Scrap Searched . | . . . Spaces Dug . | . . . Terrain Destroyed 11 | . 11 . Melee . | . . . Projectile . | . . . AOE 11 | . 11 . Terrain Rammed . | . . . Walls Destroyed . | . . . Machines Disabled . | . . . Actions | -11 -10 -10 --------- Run | Jun Mat Min Total 491 | 10 389 92 Wait 18 | . 11 7 Move 367 | 10 287 70 Hop . | . . . Pick Up . | . . . Fast Attach 11 | . 11 . Attach 5 | . 2 3 Detach 3 | . 3 . Swap 6 | . 5 1 Drop 10 | . 10 . Fire 71 | . 60 11 Melee . | . . . Ram . | . . . Kick . | . . . Crush . | . . . Escape Stasis . | . . . Rewire . | . . . Trap . | . . . Miscellaneous . | . . . Route ------- -11/Junkyard -10/Materials (discovered 2 exits: [*Mat] / *Min) -10/Mines History --------- Turn | Location | Event 1 | -11/Junkyard | Discovered new exit (range 2) 13 | -11/Junkyard | Entered Materials 316 | -10/Materials | Build established: Mutant 373 | -10/Materials | Identified exit to Mines 422 | -10/Materials | Core integrity fell below 50% 458 | -10/Materials | Lost 3 parts (1p2u) 462 | -10/Materials | Discovered new exit (range 9) 567 | -10/Materials | Entered Mines 621 | -10/Mines | Found a hidden stash of uninstalled traps 661 | -10/Mines | Core integrity fell below 20% 693 | -10/Mines | Destroyed by G-47 Trooper with Particle Gun Last Messages --------------- 00556_ K-01 Serf cleans the Machine. 00560_ Overheating: System interference. 00560_ Assault Rifle temporarily disabled. 00560_ K-01 Serf collects debris. 00560_ G-34 Mercenary destroyed. 00567_ Nuclear Reactor explodes. LOCATION=MINES GOAL=ESCAPE 00621_ A stash of uninstalled traps is collected here! 00657_ Y-45 Defender suffers critical hit (Burn). 00667_ Y-45 Defender destroyed. 00667_ Switching to secondary target: Y-45 Defender. 00669_ Aluminum Leg destroyed. 00670_ Y-45 Defender destroyed. 00674_ G-34 Mercenary destroyed. 00674_ Switching to secondary target: G-47 Trooper. 00677_ Assault Rifle destroyed. 00681_ Aluminum Leg destroyed. 00683_ Ion Engine destroyed. 00685_ Seismic Detector destroyed. Map ----- +----------------------------------------------------+ | ??????????????????????????????????? | | ??????????????????????????????????? | | ??????????????????????????????????? | | ??????????????????????????????????? | | ??????????????????????????????????? | | ??????????????????????????????????? | | ??????????????????????????????????? | | ??????????????????????????????????? | | ??????????????????????????????????? | | ??????????????????????????????????? | | ??????????????????????????????????? | | ??????????????????????????????????? | | ??????????????????????????????????? | | ??????????????????????????????????? | | ??????????????????????????????????? | | ??????????????????????????????????? | | ??????????????????????????????????? | | ??????????????????????????????????? | | ?????????????????#????????????????? | | ????????????????? ???######???????? | | ????????????????# #?##" "#???????? | | ????????????????# #?#|! !!???????? | | ????####????????# #?#[/! !????????? | | ???## ########## #??#%!% ??#?????? | | ???# ## #?###++## ##????? | | ???# ###### ## #?# [==@ #????? | | ??## #????# ## #?# ! #????? | | ### #????# ## ### ##????? | | # #????# %= #?????? | | & & ##????###### g #????? | | &###??????????## #???? | | ##?????????????## #???? | | #???????????????# ########???? | | ##???????????????# #??????????? | | ####????????????????# #??????????? | | ????????????????????# #??????????? | | ????????????????????#$ #??????????? | | ??????????##???????? ??????????? | | ###??????# #???????? ??????????? | | #????## #???????? ??????????? | | # #????# #???????? ?????????? | | # #???## #??????? ?????????? | | # #??## #????????## #?????????? | | # #### #??????????##??????????? | | # ##?????????????????????? | | #### ## #?????????????????????? | | ???# ## ???????????????? | | ???# #?????????????? | | ???##### #?????????????? | | ???????### """ ##?????????????? | +----------------------------------------------------+ Best States ------------- Heat Dissipation 35 Energy Generation 14 Energy Capacity 250 Matter Stores 300 Matter Capacity 300 Sight Range 16 Terrain Scan Density 10 Armor Coverage 80 Evasion (%) 62 Recoil Reduction 2 Item Schematics ----------------- None Robot Schematics ------------------ None Fabricated ------------ Nothing Alien Tech Used ----------------- None Achievements -------------- None Challenges ------------ None Game ------ Seed TerrainFissionMantle Manual? 0 Play Time 00:04:52 Cumulative 432.8 hours Start 2023.07.11 @ 15:22:39 End 2023.07.11 @ 15:26:50 Sessions 1 Manual Loads 0 Difficulty Rogue Special Mode None Game No. 318 Rogue 99 Adventurer 76 Explorer 143 Win Type - Total 22 Types 19/0/2/0/0/0/0/1/0 Lore% 66 Gallery% 86 Achievement% 71 Wizard Run 0 Options --------- ASCII 0 Keyboard 1 Movement Numpad Keybinds 0 Fullscreen 2 Font 18/X11Bold Map View 76x50 Tactical HUD 1 Map Filters NONE Filters NONE Steam 1 RUN: 9491b8f5-ac0b-4fe5-838d-7e6b1a085d68